[Event "*** Titled Tuesday Blitz"]
[Site "Chess.com"]
[Date "2021.03.16"]
[Round "4"]
[White "GMRafpig"]
[Black "Unknown_IM"]
[Result "1-0"]
[WhiteElo "2648"]
[BlackElo "2398"]
[TimeControl "180+1"]
[EndTime "10:38:04 PDT"]
[Termination "GMRafpig won on time"]

1. c4 {[%clk 0:03:00.9]} 1... Nf6 {[%clk 0:02:54.3]} 2. Nc3 {[%clk 0:02:59.6]}
2... c5 {[%clk 0:02:51.6]} 3. Nf3 {[%clk 0:02:57.5]} 3... Nc6 {[%clk 0:02:50.3]}
4. e3 {[%clk 0:02:57.3]} 4... g6 {[%clk 0:02:50.7]} 5. d4 {[%clk 0:02:55.7]}
5... cxd4 {[%clk 0:02:49.6]} 6. exd4 {[%clk 0:02:56]} 6... d6 {[%clk 0:02:45.7]}
7. Be2 {[%clk 0:02:54]} 7... Bg7 {[%clk 0:02:45.8]} 8. O-O {[%clk 0:02:54]} 8...
O-O {[%clk 0:02:46.1]} 9. h3 {[%clk 0:02:54.4]} 9... e5 {[%clk 0:02:44]} 10. Be3
{[%clk 0:02:52.4]} 10... Re8 {[%clk 0:02:39.1]} 11. dxe5 {[%clk 0:02:15.3]}
11... dxe5 {[%clk 0:02:37.6]} 12. Qxd8 {[%clk 0:02:06.9]} 12... Rxd8 {[%clk
0:02:38.5]} 13. Rfd1 {[%clk 0:02:07]} 13... Bf5 {[%clk 0:02:34.9]} 14. Nb5
{[%clk 0:01:59.1]} 14... Bf8 {[%clk 0:02:22.8]} 15. Rxd8 {[%clk 0:01:53]} 15...
Rxd8 {[%clk 0:02:20.9]} 16. Nxa7 {[%clk 0:01:46.2]} 16... Nd4 {[%clk 0:01:58.1]}
17. Nxd4 {[%clk 0:01:29.7]} 17... exd4 {[%clk 0:01:57.9]} 18. Bg5 {[%clk
0:01:28.2]} 18... Bg7 {[%clk 0:01:54.7]} 19. Nb5 {[%clk 0:01:24.5]} 19... d3
{[%clk 0:01:53.5]} 20. Bf1 {[%clk 0:01:20.3]} 20... h6 {[%clk 0:01:53.5]} 21.
Be3 {[%clk 0:01:18.7]} 21... Be6 {[%clk 0:01:15.5]} 22. b3 {[%clk 0:00:47]}
22... Ng4 {[%clk 0:00:54.7]} 23. Rd1 {[%clk 0:00:46]} 23... Nxe3 {[%clk
0:00:54.1]} 24. fxe3 {[%clk 0:00:46.3]} 24... Bf5 {[%clk 0:00:47.7]} 25. Kf2
{[%clk 0:00:41]} 25... Be4 {[%clk 0:00:23.3]} 26. Nd4 {[%clk 0:00:37.1]} 26...
Rxd4 {[%clk 0:00:05.3]} 27. exd4 {[%clk 0:00:35.7]} 27... Bxd4+ {[%clk
0:00:06.2]} 28. Ke1 {[%clk 0:00:28.2]} 28... Bc3+ {[%clk 0:00:06.1]} 29. Rd2
{[%clk 0:00:28.5]} 29... f5 {[%clk 0:00:02.6]} 30. g3 {[%clk 0:00:28]} 1-0

[Event "*** Titled Tuesday Blitz"]
[Site "Chess.com"]
[Date "2021.03.16"]
[Round "4"]
[White "Babas"]
[Black "juli2512"]
[Result "0-1"]
[WhiteElo "2399"]
[BlackElo "2201"]
[TimeControl "180+1"]
[EndTime "10:38:05 PDT"]
[Termination "juli2512 won by checkmate"]

1. d4 {[%clk 0:03:00.9]} 1... f5 {[%clk 0:02:59.3]} 2. Bg5 {[%clk 0:02:59.7]}
2... g6 {[%clk 0:02:58.7]} 3. h4 {[%clk 0:02:58.5]} 3... Bg7 {[%clk 0:02:58.9]}
4. h5 {[%clk 0:02:54.6]} 4... Nf6 {[%clk 0:02:57.9]} 5. h6 {[%clk 0:02:53.8]}
5... Bf8 {[%clk 0:02:57.6]} 6. Nc3 {[%clk 0:02:53]} 6... c6 {[%clk 0:02:56.7]}
7. d5 {[%clk 0:02:50]} 7... d6 {[%clk 0:02:54]} 8. Nf3 {[%clk 0:02:46.7]} 8...
e5 {[%clk 0:02:48.9]} 9. dxe6 {[%clk 0:02:31.7]} 9... Bxe6 {[%clk 0:02:48.7]}
10. e4 {[%clk 0:02:32.2]} 10... Be7 {[%clk 0:02:43.6]} 11. Nd4 {[%clk 0:02:30]}
11... Bc8 {[%clk 0:02:33.4]} 12. exf5 {[%clk 0:02:28.5]} 12... Qb6 {[%clk
0:02:26.4]} 13. fxg6 {[%clk 0:02:23.1]} 13... hxg6 {[%clk 0:02:10.8]} 14. Bd3
{[%clk 0:02:22.1]} 14... O-O {[%clk 0:02:05.1]} 15. Bxg6 {[%clk 0:01:58.6]}
15... Qxb2 {[%clk 0:01:46.9]} 16. Bd2 {[%clk 0:01:35.8]} 16... Qb6 {[%clk
0:01:45.7]} 17. Rh4 {[%clk 0:01:23.8]} 17... Qc5 {[%clk 0:01:10.9]} 18. Qe2
{[%clk 0:01:17.2]} 18... Bd8 {[%clk 0:01:06]} 19. Ne6 {[%clk 0:01:06.7]} 19...
Bxe6 {[%clk 0:00:50.4]} 20. Qxe6+ {[%clk 0:01:07.6]} 20... Kh8 {[%clk
0:00:50.6]} 21. O-O-O {[%clk 0:00:37.9]} 21... Nbd7 {[%clk 0:00:39.8]} 22. Kb1
{[%clk 0:00:33.1]} 22... Ba5 {[%clk 0:00:34.5]} 23. Qe7 {[%clk 0:00:27.9]} 23...
Rg8 {[%clk 0:00:25.9]} 24. Bd3 {[%clk 0:00:13.3]} 24... Rae8 {[%clk 0:00:16]}
25. Qf7 {[%clk 0:00:13]} 25... Bxc3 {[%clk 0:00:15.8]} 26. Bxc3 {[%clk
0:00:09.2]} 26... Qxc3 {[%clk 0:00:15.4]} 27. Rf4 {[%clk 0:00:08.8]} 27... Re1
{[%clk 0:00:14.6]} 28. Rxf6 {[%clk 0:00:06.9]} 28... Rxd1# {[%clk 0:00:14.1]}
0-1

[Event "*** Titled Tuesday Blitz"]
[Site "Chess.com"]
[Date "2021.03.16"]
[Round "4"]
[White "gurelediz"]
[Black "BvsN"]
[Result "1-0"]
[WhiteElo "2664"]
[BlackElo "2422"]
[TimeControl "180+1"]
[EndTime "10:38:09 PDT"]
[Termination "gurelediz won by checkmate"]

1. e4 {[%clk 0:03:00.9]} 1... c5 {[%clk 0:02:59.8]} 2. Nf3 {[%clk 0:03:01.1]}
2... e6 {[%clk 0:03:00.2]} 3. d4 {[%clk 0:03:01.7]} 3... cxd4 {[%clk 0:03:01.1]}
4. Nxd4 {[%clk 0:03:02.5]} 4... a6 {[%clk 0:03:01.7]} 5. Nc3 {[%clk 0:03:02.9]}
5... Qc7 {[%clk 0:03:01.4]} 6. g3 {[%clk 0:03:02.2]} 6... Bb4 {[%clk 0:03:00.9]}
7. Bd2 {[%clk 0:03:01.4]} 7... Nf6 {[%clk 0:03:01.1]} 8. Bg2 {[%clk 0:03:02]}
8... Nc6 {[%clk 0:03:01.5]} 9. Nb3 {[%clk 0:03:01.5]} 9... Be7 {[%clk
0:03:01.3]} 10. O-O {[%clk 0:03:01.6]} 10... O-O {[%clk 0:03:01.7]} 11. f4
{[%clk 0:03:02.1]} 11... d5 {[%clk 0:03:02.1]} 12. Be3 {[%clk 0:02:58.3]} 12...
Rd8 {[%clk 0:02:35.7]} 13. e5 {[%clk 0:02:47.5]} 13... Nd7 {[%clk 0:02:35.4]}
14. Ne2 {[%clk 0:02:38.5]} 14... b5 {[%clk 0:02:33]} 15. Ned4 {[%clk 0:02:35.6]}
15... Nb6 {[%clk 0:02:26.6]} 16. c3 {[%clk 0:02:31.2]} 16... Nc4 {[%clk
0:02:26.8]} 17. Bc1 {[%clk 0:02:31.9]} 17... Rb8 {[%clk 0:02:21.2]} 18. g4
{[%clk 0:02:27.4]} 18... b4 {[%clk 0:02:16.4]} 19. g5 {[%clk 0:02:25.7]} 19...
bxc3 {[%clk 0:02:15.7]} 20. bxc3 {[%clk 0:02:26.6]} 20... a5 {[%clk 0:02:12.7]}
21. Nxc6 {[%clk 0:02:20.5]} 21... Qxc6 {[%clk 0:02:12]} 22. Nd4 {[%clk
0:02:21.4]} 22... Qc7 {[%clk 0:02:00.3]} 23. Rf3 {[%clk 0:02:19.8]} 23... Bf8
{[%clk 0:01:48.3]} 24. Rh3 {[%clk 0:02:15]} 24... g6 {[%clk 0:01:47.8]} 25. Qg4
{[%clk 0:02:13.1]} 25... a4 {[%clk 0:01:06.4]} 26. Qh4 {[%clk 0:02:08.5]} 26...
h5 {[%clk 0:01:05.9]} 27. gxh6 {[%clk 0:02:09.1]} 27... Kh7 {[%clk 0:01:03.4]}
28. Nf3 {[%clk 0:02:04.9]} 28... Be7 {[%clk 0:00:57.9]} 29. Ng5+ {[%clk
0:01:57.7]} 29... Bxg5 {[%clk 0:00:55.5]} 30. Qxg5 {[%clk 0:01:58.6]} 30... a3
{[%clk 0:00:47.3]} 31. Be3 {[%clk 0:01:35.7]} 31... Rb2 {[%clk 0:00:27.2]} 32.
Bd4 {[%clk 0:01:32.9]} 32... Rg8 {[%clk 0:00:16.7]} 33. Qf6 {[%clk 0:01:12.4]}
33... Qb7 {[%clk 0:00:14.1]} 34. Rg3 {[%clk 0:00:52.1]} 34... Nd2 {[%clk
0:00:13]} 35. f5 {[%clk 0:00:45.3]} 35... Rb1+ {[%clk 0:00:13]} 36. Rxb1 {[%clk
0:00:37.2]} 36... Qxb1+ {[%clk 0:00:12.6]} 37. Kf2 {[%clk 0:00:38]} 37... Ne4+
{[%clk 0:00:12.2]} 38. Bxe4 {[%clk 0:00:37.6]} 38... Qb2+ {[%clk 0:00:12.7]} 39.
Ke3 {[%clk 0:00:34.6]} 39... dxe4 {[%clk 0:00:12.9]} 40. fxg6+ {[%clk
0:00:34.1]} 40... fxg6 {[%clk 0:00:13.2]} 41. Qe7+ {[%clk 0:00:32.9]} 41... Kxh6
{[%clk 0:00:12.8]} 42. Rh3# {[%clk 0:00:32.7]} 1-0

[Event "*** Titled Tuesday Blitz"]
[Site "Chess.com"]
[Date "2021.03.16"]
[Round "4"]
[White "bazar-wokzal"]
[Black "The_filthy"]
[Result "1/2-1/2"]
[WhiteElo "2479"]
[BlackElo "2302"]
[TimeControl "180+1"]
[EndTime "10:38:11 PDT"]
[Termination "Game drawn by agreement"]

1. e4 {[%clk 0:03:00.9]} 1... e6 {[%clk 0:03:00]} 2. d4 {[%clk 0:02:55.1]} 2...
d5 {[%clk 0:03:00.2]} 3. exd5 {[%clk 0:02:56]} 3... exd5 {[%clk 0:03:00.3]} 4.
Nf3 {[%clk 0:02:56.7]} 4... Nf6 {[%clk 0:03:00.7]} 5. c4 {[%clk 0:02:56.4]} 5...
dxc4 {[%clk 0:02:59.6]} 6. Bxc4 {[%clk 0:02:55.9]} 6... Be7 {[%clk 0:02:59.8]}
7. O-O {[%clk 0:02:55.7]} 7... O-O {[%clk 0:03:00]} 8. Nc3 {[%clk 0:02:55.6]}
8... b6 {[%clk 0:03:00.4]} 9. Ne5 {[%clk 0:02:51.9]} 9... Bb7 {[%clk 0:03:00.4]}
10. Qb3 {[%clk 0:02:45.2]} 10... Qxd4 {[%clk 0:02:54.9]} 11. Nxf7 {[%clk
0:02:35.8]} 11... Rxf7 {[%clk 0:02:29.2]} 12. Bxf7+ {[%clk 0:02:34.8]} 12... Kh8
{[%clk 0:02:28.8]} 13. Be3 {[%clk 0:02:31.2]} 13... Qg4 {[%clk 0:02:21.9]} 14.
f3 {[%clk 0:02:30.5]} 14... Qh4 {[%clk 0:02:21.7]} 15. Rae1 {[%clk 0:02:21.4]}
15... Bd6 {[%clk 0:02:18.5]} 16. h3 {[%clk 0:02:00.7]} 16... Qg3 {[%clk
0:02:08.6]} 17. Ne2 {[%clk 0:01:57.5]} 17... Qh2+ {[%clk 0:02:00.4]} 18. Kf2
{[%clk 0:01:57.8]} 18... Nbd7 {[%clk 0:01:51.2]} 19. Bd4 {[%clk 0:01:48.5]}
19... Nc5 {[%clk 0:01:21.4]} 20. Qe3 {[%clk 0:01:41.3]} 20... Nfe4+ {[%clk
0:01:05.5]} 21. fxe4 {[%clk 0:01:37.4]} 21... Nxe4+ {[%clk 0:01:05]} 22. Kf3
{[%clk 0:01:07]} 22... Rf8 {[%clk 0:00:54]} 23. Kg4 {[%clk 0:00:48.2]} 23...
Qxg2+ {[%clk 0:00:36.6]} 24. Kh5 {[%clk 0:00:34.6]} 24... Rxf7 {[%clk 0:00:21]}
25. Rxf7 {[%clk 0:00:32.7]} 25... Qg6+ {[%clk 0:00:20.8]} 26. Kh4 {[%clk
0:00:30.6]} 26... Qxf7 {[%clk 0:00:14.6]} 27. Rg1 {[%clk 0:00:24.4]} 27... Qe7+
{[%clk 0:00:10.7]} 28. Kh5 {[%clk 0:00:19]} 28... Qf7+ {[%clk 0:00:07.2]} 29.
Kh4 {[%clk 0:00:17.6]} 29... Qe7+ {[%clk 0:00:07.2]} 30. Kh5 {[%clk 0:00:13.9]}
30... Qf7+ {[%clk 0:00:07.3]} 1/2-1/2

[Event "*** Titled Tuesday Blitz"]
[Site "Chess.com"]
[Date "2021.03.16"]
[Round "4"]
[White "IsaacWiebe"]
[Black "Pinkito"]
[Result "1-0"]
[WhiteElo "2261"]
[BlackElo "2444"]
[TimeControl "180+1"]
[EndTime "10:38:14 PDT"]
[Termination "IsaacWiebe won by checkmate"]

1. d4 {[%clk 0:03:00.9]} 1... e6 {[%clk 0:03:00]} 2. c4 {[%clk 0:03:00.3]} 2...
f5 {[%clk 0:03:00.2]} 3. Nf3 {[%clk 0:02:59.6]} 3... Nf6 {[%clk 0:03:00.2]} 4.
g3 {[%clk 0:02:59.7]} 4... Be7 {[%clk 0:03:00.1]} 5. Bg2 {[%clk 0:02:59.6]} 5...
O-O {[%clk 0:03:00.1]} 6. O-O {[%clk 0:02:59.7]} 6... d6 {[%clk 0:02:59.8]} 7.
Qc2 {[%clk 0:02:58]} 7... Ne4 {[%clk 0:02:56.7]} 8. Nfd2 {[%clk 0:02:56.4]} 8...
Nxd2 {[%clk 0:02:55.7]} 9. Nxd2 {[%clk 0:02:55.9]} 9... e5 {[%clk 0:02:55.1]}
10. dxe5 {[%clk 0:02:50.8]} 10... dxe5 {[%clk 0:02:54.9]} 11. b3 {[%clk
0:02:48.8]} 11... Nc6 {[%clk 0:02:54.4]} 12. Bb2 {[%clk 0:02:48.7]} 12... a5
{[%clk 0:02:54.6]} 13. Bxc6 {[%clk 0:02:43.4]} 13... bxc6 {[%clk 0:02:53.7]} 14.
Bxe5 {[%clk 0:02:42.6]} 14... f4 {[%clk 0:02:20]} 15. Bxf4 {[%clk 0:02:30.9]}
15... Rxf4 {[%clk 0:02:08.5]} 16. gxf4 {[%clk 0:02:30.7]} 16... Bh3 {[%clk
0:02:08.6]} 17. Qe4 {[%clk 0:01:43.3]} 17... Bf6 {[%clk 0:02:00.6]} 18. Nf3
{[%clk 0:01:22.4]} 18... Qd7 {[%clk 0:01:52.6]} 19. Ne5 {[%clk 0:01:14.4]} 19...
Bxe5 {[%clk 0:00:51.1]} 20. fxe5 {[%clk 0:01:14.2]} 20... Rf8 {[%clk 0:00:40.5]}
21. f4 {[%clk 0:00:57.1]} 21... Qg4+ {[%clk 0:00:30.4]} 22. Kh1 {[%clk
0:00:56.2]} 22... g5 {[%clk 0:00:16.6]} 23. e3 {[%clk 0:00:42.9]} 23... Kh8
{[%clk 0:00:06]} 24. Rg1 {[%clk 0:00:37.7]} 24... Qh4 {[%clk 0:00:04.8]} 25.
Rxg5 {[%clk 0:00:29.8]} 25... c5 {[%clk 0:00:04.8]} 26. Rag1 {[%clk 0:00:22.6]}
26... h6 {[%clk 0:00:04.8]} 27. Rg7 {[%clk 0:00:12.1]} 27... Bf5 {[%clk
0:00:04.8]} 28. Qxf5 {[%clk 0:00:09.8]} 28... Rxf5 {[%clk 0:00:04.5]} 29. Rg8+
{[%clk 0:00:10.3]} 29... Kh7 {[%clk 0:00:05]} 30. R1g7# {[%clk 0:00:09.1]} 1-0

[Event "*** Titled Tuesday Blitz"]
[Site "Chess.com"]
[Date "2021.03.16"]
[Round "4"]
[White "UCantHandleDenker"]
[Black "slavenok"]
[Result "0-1"]
[WhiteElo "2503"]
[BlackElo "2725"]
[TimeControl "180+1"]
[EndTime "10:38:15 PDT"]
[Termination "slavenok won on time"]

1. Nf3 {[%clk 0:03:00.9]} 1... d5 {[%clk 0:02:59.5]} 2. g3 {[%clk 0:03:01.2]}
2... Nf6 {[%clk 0:03:00.1]} 3. Bg2 {[%clk 0:03:01.2]} 3... e6 {[%clk 0:03:00.7]}
4. O-O {[%clk 0:03:01.1]} 4... Be7 {[%clk 0:03:00.3]} 5. d3 {[%clk 0:03:01.4]}
5... O-O {[%clk 0:03:00.5]} 6. Nbd2 {[%clk 0:03:01.9]} 6... d4 {[%clk 0:03:01]}
7. e4 {[%clk 0:03:00.4]} 7... dxe3 {[%clk 0:03:01.9]} 8. fxe3 {[%clk 0:03:00.7]}
8... c5 {[%clk 0:03:02.6]} 9. Qe2 {[%clk 0:03:00.6]} 9... Nc6 {[%clk 0:03:03]}
10. c3 {[%clk 0:03:00.9]} 10... e5 {[%clk 0:03:03.3]} 11. e4 {[%clk 0:03:01.2]}
11... h6 {[%clk 0:03:02.5]} 12. a4 {[%clk 0:02:55.7]} 12... Be6 {[%clk
0:03:00.3]} 13. Nc4 {[%clk 0:02:48.5]} 13... Qc7 {[%clk 0:02:57.7]} 14. Nh4
{[%clk 0:02:36.1]} 14... a6 {[%clk 0:02:46]} 15. Ne3 {[%clk 0:02:23.7]} 15...
Rad8 {[%clk 0:02:38.9]} 16. Nhf5 {[%clk 0:02:03.5]} 16... Na5 {[%clk 0:02:32.3]}
17. Ng4 {[%clk 0:01:34.8]} 17... Nxg4 {[%clk 0:02:28.9]} 18. Qxg4 {[%clk
0:01:35.3]} 18... Bxf5 {[%clk 0:02:27]} 19. exf5 {[%clk 0:01:26.8]} 19... Qd6
{[%clk 0:02:02.6]} 20. f6 {[%clk 0:01:05]} 20... Bxf6 {[%clk 0:02:00.4]} 21.
Bxh6 {[%clk 0:01:04.6]} 21... c4 {[%clk 0:01:40.8]} 22. dxc4 {[%clk 0:00:50.7]}
22... Rc8 {[%clk 0:01:36.6]} 23. Bd5 {[%clk 0:00:45.9]} 23... Rxc4 {[%clk
0:01:05.8]} 24. Bxc4 {[%clk 0:00:39.4]} 24... Qc5+ {[%clk 0:01:05.3]} 25. Kg2
{[%clk 0:00:35.5]} 25... Qc6+ {[%clk 0:00:59.8]} 26. Kh3 {[%clk 0:00:33.2]}
26... Nxc4 {[%clk 0:00:57.4]} 27. Rf3 {[%clk 0:00:16.8]} 27... e4 {[%clk
0:00:55.1]} 28. Rf5 {[%clk 0:00:14]} 28... Qe6 {[%clk 0:00:50.4]} 29. Raf1
{[%clk 0:00:12.9]} 29... Be5 {[%clk 0:00:36.4]} 30. Qxe4 {[%clk 0:00:06.3]}
30... Qxh6+ {[%clk 0:00:33.2]} 31. Kg2 {[%clk 0:00:05.3]} 31... Ne3+ {[%clk
0:00:33.5]} 32. Kg1 {[%clk 0:00:03]} 32... Nxf1 {[%clk 0:00:30.7]} 33. Qxe5
{[%clk 0:00:02]} 33... Nd2 {[%clk 0:00:24]} 0-1

[Event "*** Titled Tuesday Blitz"]
[Site "Chess.com"]
[Date "2021.03.16"]
[Round "4"]
[White "Fandorine"]
[Black "Das_Virus_2020"]
[Result "1-0"]
[WhiteElo "2873"]
[BlackElo "2469"]
[TimeControl "180+1"]
[EndTime "10:38:15 PDT"]
[Termination "Fandorine won by resignation"]

1. c4 {[%clk 0:03:00.9]} 1... Nf6 {[%clk 0:02:59]} 2. Nc3 {[%clk 0:03:00.8]}
2... c5 {[%clk 0:02:56.1]} 3. g3 {[%clk 0:03:01.1]} 3... e6 {[%clk 0:02:53.1]}
4. Nf3 {[%clk 0:02:58.8]} 4... a6 {[%clk 0:02:48.5]} 5. Bg2 {[%clk 0:02:57.5]}
5... Be7 {[%clk 0:02:46.9]} 6. O-O {[%clk 0:02:57.4]} 6... O-O {[%clk
0:02:46.6]} 7. d4 {[%clk 0:02:57.4]} 7... cxd4 {[%clk 0:02:45.7]} 8. Nxd4 {[%clk
0:02:57.6]} 8... Qc7 {[%clk 0:02:45.9]} 9. Qd3 {[%clk 0:02:42.3]} 9... d6 {[%clk
0:02:38.5]} 10. b3 {[%clk 0:02:39.2]} 10... Nbd7 {[%clk 0:02:37.7]} 11. Bb2
{[%clk 0:02:39.4]} 11... Ne5 {[%clk 0:02:37.2]} 12. Qd2 {[%clk 0:02:33.5]} 12...
Bd7 {[%clk 0:02:36.5]} 13. Rac1 {[%clk 0:02:32.9]} 13... Rac8 {[%clk 0:02:35.8]}
14. Rfd1 {[%clk 0:02:33.1]} 14... Rfd8 {[%clk 0:02:28]} 15. h3 {[%clk
0:02:28.7]} 15... Qb8 {[%clk 0:02:20.8]} 16. a4 {[%clk 0:02:27]} 16... Nc6
{[%clk 0:02:09.2]} 17. e4 {[%clk 0:02:20.7]} 17... Nxd4 {[%clk 0:02:04.7]} 18.
Qxd4 {[%clk 0:02:21.6]} 18... Bc6 {[%clk 0:01:47.3]} 19. b4 {[%clk 0:02:17.4]}
19... e5 {[%clk 0:01:35.6]} 20. Qd3 {[%clk 0:02:11.3]} 20... Bd7 {[%clk
0:01:31.2]} 21. b5 {[%clk 0:02:09.8]} 21... Be6 {[%clk 0:01:27.7]} 22. Nd5
{[%clk 0:02:01.6]} 22... Bxd5 {[%clk 0:01:27.1]} 23. cxd5 {[%clk 0:01:57.5]}
23... Nd7 {[%clk 0:01:16.4]} 24. Ba3 {[%clk 0:01:49]} 24... axb5 {[%clk
0:00:51.2]} 25. Qxb5 {[%clk 0:01:48.5]} 25... Nc5 {[%clk 0:00:48.4]} 26. h4
{[%clk 0:01:40.7]} 26... Qa7 {[%clk 0:00:39]} 27. a5 {[%clk 0:01:40.9]} 27...
Qa6 {[%clk 0:00:34.9]} 28. Rb1 {[%clk 0:01:29.6]} 28... Qxb5 {[%clk 0:00:30.5]}
29. Rxb5 {[%clk 0:01:29]} 29... Rc7 {[%clk 0:00:19.8]} 30. Rdb1 {[%clk
0:01:21.2]} 30... Ra8 {[%clk 0:00:15.4]} 31. Bf1 {[%clk 0:01:03.5]} 31... Ra7
{[%clk 0:00:13.7]} 32. Bxc5 {[%clk 0:00:54.8]} 32... dxc5 {[%clk 0:00:11.5]} 33.
Rb6 {[%clk 0:00:44.1]} 33... Bf8 {[%clk 0:00:11.3]} 34. Bh3 {[%clk 0:00:37.7]}
34... Rxa5 {[%clk 0:00:08.5]} 35. d6 {[%clk 0:00:32.8]} 35... Rc6 {[%clk
0:00:08.8]} 36. Rxc6 {[%clk 0:00:33.2]} 36... bxc6 {[%clk 0:00:08.8]} 37. Rb8
{[%clk 0:00:33.8]} 37... Ra1+ {[%clk 0:00:06.8]} 38. Kg2 {[%clk 0:00:31.5]}
38... Rd1 {[%clk 0:00:07.7]} 39. d7 {[%clk 0:00:31]} 1-0

[Event "*** Titled Tuesday Blitz"]
[Site "Chess.com"]
[Date "2021.03.16"]
[Round "4"]
[White "jefferyx"]
[Black "GregShahade"]
[Result "0-1"]
[WhiteElo "2990"]
[BlackElo "2777"]
[TimeControl "180+1"]
[EndTime "10:38:16 PDT"]
[Termination "GregShahade won by resignation"]

1. d4 {[%clk 0:03:00.9]} 1... Nf6 {[%clk 0:02:59.2]} 2. c4 {[%clk 0:02:58.9]}
2... g6 {[%clk 0:02:59]} 3. Nc3 {[%clk 0:02:58.9]} 3... d5 {[%clk 0:02:59]} 4.
Nf3 {[%clk 0:02:53.6]} 4... Bg7 {[%clk 0:02:58.9]} 5. Bf4 {[%clk 0:02:54.2]}
5... O-O {[%clk 0:02:57.7]} 6. Rc1 {[%clk 0:02:54.5]} 6... c5 {[%clk 0:02:56.6]}
7. dxc5 {[%clk 0:02:52.4]} 7... dxc4 {[%clk 0:02:56.7]} 8. Qxd8 {[%clk
0:02:53.3]} 8... Rxd8 {[%clk 0:02:56.5]} 9. e3 {[%clk 0:02:52.8]} 9... Na6
{[%clk 0:02:45.5]} 10. c6 {[%clk 0:02:52.4]} 10... bxc6 {[%clk 0:02:26.2]} 11.
Bxc4 {[%clk 0:02:52.3]} 11... Nd5 {[%clk 0:02:24.9]} 12. Be5 {[%clk 0:02:44]}
12... Nb6 {[%clk 0:02:15.2]} 13. Be2 {[%clk 0:02:36.1]} 13... Nb4 {[%clk
0:02:10.7]} 14. O-O {[%clk 0:02:29.6]} 14... Be6 {[%clk 0:02:07.4]} 15. Bxg7
{[%clk 0:02:04.8]} 15... Kxg7 {[%clk 0:02:08.3]} 16. a3 {[%clk 0:01:44.4]} 16...
Nd3 {[%clk 0:02:07.9]} 17. Bxd3 {[%clk 0:01:35.5]} 17... Rxd3 {[%clk 0:02:08.8]}
18. Rfd1 {[%clk 0:01:36.4]} 18... Rxd1+ {[%clk 0:01:56.4]} 19. Rxd1 {[%clk
0:01:37.3]} 19... Nc4 {[%clk 0:01:55.7]} 20. Na4 {[%clk 0:01:30.3]} 20... Rb8
{[%clk 0:01:49.7]} 21. Nd4 {[%clk 0:01:29.8]} 21... Bd5 {[%clk 0:01:34.5]} 22.
Rc1 {[%clk 0:00:53.9]} 22... e5 {[%clk 0:01:12.2]} 23. Nxc6 {[%clk 0:00:53.7]}
23... Bxc6 {[%clk 0:00:56.2]} 24. Rxc4 {[%clk 0:00:53.5]} 24... Bb5 {[%clk
0:00:51.9]} 25. Rb4 {[%clk 0:00:49.3]} 25... a5 {[%clk 0:00:42.3]} 26. Rb3
{[%clk 0:00:49.5]} 26... Rd8 {[%clk 0:00:37.6]} 27. Nc3 {[%clk 0:00:49.6]} 27...
Bc4 {[%clk 0:00:34.8]} 28. Rb6 {[%clk 0:00:49.3]} 28... Rd2 {[%clk 0:00:33.5]}
29. h4 {[%clk 0:00:44.6]} 29... h5 {[%clk 0:00:32.9]} 30. b3 {[%clk 0:00:33.9]}
30... Be6 {[%clk 0:00:31]} 31. Ne4 {[%clk 0:00:32.5]} 31... Ra2 {[%clk 0:00:30]}
32. a4 {[%clk 0:00:29.8]} 32... Rb2 {[%clk 0:00:28.1]} 33. Nc5 {[%clk
0:00:29.8]} 33... Bd5 {[%clk 0:00:28.4]} 34. Rb5 {[%clk 0:00:30.2]} 34... Rb1+
{[%clk 0:00:25.8]} 35. Kh2 {[%clk 0:00:30.1]} 35... Rb2 {[%clk 0:00:24.9]} 36.
Kg3 {[%clk 0:00:30.3]} 36... f5 {[%clk 0:00:24.8]} 37. Rxa5 {[%clk 0:00:30]}
37... f4+ {[%clk 0:00:24.5]} 38. exf4 {[%clk 0:00:30.2]} 38... exf4+ {[%clk
0:00:24.9]} 39. Kxf4 {[%clk 0:00:28.5]} 39... Rxf2+ {[%clk 0:00:25.2]} 40. Ke5
{[%clk 0:00:28.6]} 40... Bxg2 {[%clk 0:00:24.9]} 41. Ne6+ {[%clk 0:00:22.2]}
41... Kh6 {[%clk 0:00:23.9]} 42. Ra8 {[%clk 0:00:22.6]} 42... Bxa8 {[%clk
0:00:22.3]} 0-1

[Event "*** Titled Tuesday Blitz"]
[Site "Chess.com"]
[Date "2021.03.16"]
[Round "4"]
[White "TheCairnTerrier"]
[Black "Forantes"]
[Result "0-1"]
[WhiteElo "2152"]
[BlackElo "2418"]
[TimeControl "180+1"]
[EndTime "10:38:17 PDT"]
[Termination "Forantes won by resignation"]

1. e4 {[%clk 0:03:00.9]} 1... c5 {[%clk 0:02:58]} 2. Nf3 {[%clk 0:03:01]} 2...
Nc6 {[%clk 0:02:57.2]} 3. Bb5 {[%clk 0:03:01]} 3... a6 {[%clk 0:02:57.3]} 4.
Bxc6 {[%clk 0:03:00.9]} 4... dxc6 {[%clk 0:02:58.2]} 5. d3 {[%clk 0:02:53.3]}
5... Qc7 {[%clk 0:02:57.3]} 6. Nc3 {[%clk 0:02:51.2]} 6... e5 {[%clk 0:02:56.6]}
7. a4 {[%clk 0:02:47.6]} 7... a5 {[%clk 0:02:55.3]} 8. O-O {[%clk 0:02:43.7]}
8... Bd6 {[%clk 0:02:54.3]} 9. Nd2 {[%clk 0:02:41.7]} 9... Ne7 {[%clk
0:02:54.2]} 10. Nc4 {[%clk 0:02:41.4]} 10... Ng6 {[%clk 0:02:54.2]} 11. g3
{[%clk 0:02:38.5]} 11... O-O {[%clk 0:02:52.2]} 12. Nxd6 {[%clk 0:02:34.5]}
12... Qxd6 {[%clk 0:02:52.3]} 13. f4 {[%clk 0:02:34.4]} 13... Bh3 {[%clk
0:02:42.2]} 14. Rf2 {[%clk 0:02:34.2]} 14... f5 {[%clk 0:02:38]} 15. fxe5 {[%clk
0:02:31.3]} 15... Qxe5 {[%clk 0:02:38.9]} 16. Bf4 {[%clk 0:02:10]} 16... Qd4
{[%clk 0:01:40.3]} 17. exf5 {[%clk 0:01:35.7]} 17... Rxf5 {[%clk 0:01:33.5]} 18.
Ne2 {[%clk 0:01:20.6]} 18... Qd5 {[%clk 0:01:31.4]} 19. Qd2 {[%clk 0:01:13.2]}
19... Raf8 {[%clk 0:01:19.2]} 20. Nc3 {[%clk 0:01:09.1]} 20... Qf7 {[%clk
0:01:01.8]} 21. Ne4 {[%clk 0:00:54.2]} 21... Nxf4 {[%clk 0:00:12.8]} 22. Rxf4
{[%clk 0:00:55.1]} 22... Rxf4 {[%clk 0:00:05.8]} 23. Qxf4 {[%clk 0:00:56]} 23...
Qh5 {[%clk 0:00:05.9]} 24. Qh4 {[%clk 0:00:19.2]} 24... Qf5 {[%clk 0:00:06.1]}
25. Qf4 {[%clk 0:00:08.6]} 25... Qd5 {[%clk 0:00:03.4]} 26. Qd6 {[%clk
0:00:06.4]} 26... Qf7 {[%clk 0:00:02.8]} 27. Qxc5 {[%clk 0:00:05.2]} 27... Qf1+
{[%clk 0:00:02.4]} 0-1